[Event "Mukachevo IM October 2019"]
[Site "Mukachevo"]
[Date "2019.10.04"]
[Round "7.3"]
[White "Vachylia, Andrii"]
[Black "Ganze, Laszlo"]
[Result "1-0"]
[ECO "B22"]
[WhiteElo "2201"]
[BlackElo "1942"]
[Annotator "NA"]
[PlyCount "75"]
[EventDate "2019.10.01"]
[EventType "tourn"]
[EventCountry "UKR"]
[SourceTitle "playchess.com"]
[Source "ChessBase"]
[SourceQuality "1"]
[TimeControl "40/5400+30:900+30"]

1. e4 {[%emt 0:00:00]} c5 {[%emt 0:00:00]} 2. c3 {[%emt 0:00:00]} d5 {[%emt 0:00:18]} 3. exd5 {[%emt 0:00:13]} Qxd5 {[%emt 0:00:14]} 4. Nf3 {[%emt 0:00:08]} Nf6 {[%emt 0:00:51]} 5. d4 {[%emt 0:00:05]} Bg4 {[%emt 0:02:48]} 6. Be2 {[%emt 0:00:27]} cxd4 {[%emt 0:02:56]} 7. cxd4 {[%emt 0:00:07]} e6 {[%emt 0:01:37]} 8. O-O {[%emt 0:00:13]} Bb4 {[%emt 0:05:36]} 9. a3 {[%emt 0:05:24]} Ba5 {[%emt 0:02:25]} 10. h3 {[%emt 0:00:07]} Bf5 {[%emt 0:02:22]} 11. Ne5 {[%emt 0:01:42]} O-O {[%emt 0:12:54]} 12. b4 {[%emt 0:01:14]} Bb6 {[%emt 0:08:09]} 13. Be3 {[%emt 0:00:13]} Rc8 {[%emt 0:02:22]} 14. a4 {[%emt 0:03:37]} a5 {[%emt 0:03:24]} 15. bxa5 {[%emt 0:01:11]} Bxa5 {[%emt 0:01:33]} 16. Na3 {[%emt 0:00:45]} Na6 {[%emt 0:05:33]} 17. Bc4 {[%emt 0:03:36]} Qd8 {[%emt 0:02:10]} 18. Qf3 {[%emt 0:00:18]} Be4 {[%emt 0:00:59]} 19. Qg3 {[%emt 0:00:06]} Bc7 {[%emt 0:02:21]} 20. Rfd1 {[%emt 0:01:39]} Nd5 {[%emt 0:03:48]} 21. f4 {[%emt 0:03:55]} Nab4 {[%emt 0:03:11]} 22. Bb3 {[%emt 0:01:01]} Nc3 {[%emt 0:01:22]} 23. Re1 {[%emt 0:01:33]} Nbd5 {[%emt 0:02:12]} 24. Nac4 {[%emt 0:01:17]} b5 {[%emt 0:02:24]} 25. Nd2 {[%emt 0:00:44]} bxa4 {[%emt 0:01:48]} 26. Bxd5 {[%emt 0:00:44]} Bxd5 {[%emt 0:00:47]} 27. f5 {[%emt 0:00:09]} exf5 {[%emt 0:02:58]} 28. Bh6 {[%emt 0:00:43]} Qf6 {[%emt 0:01:02]} 29. Bg5 {[%emt 0:01:38]} Qb6 {[%emt 0:01:59]} 30. Kh1 {[%emt 0:00:47]} Qxd4 {[%emt 0:02:17]} 31. Bf6 {[%emt 0:00:24]} g6 {[%emt 0:01:17]} 32. Qg5 {[%emt 0:02:05]} Qf2 {[%emt 0:04:11]} 33. Nef3 {[%emt 0:00:12]} Bd6 {[%emt 0:03:47]} 34. Bd4 {[%emt 0:00:09]} Bxf3 {[%emt 0:01:21]} 35. Bxf2 {[%emt 0:00:50]} Ne4 {[%emt 0:02:57]} 36. Nxe4 {[%emt 0:00:34]} Bxe4 {[%emt 0:00:52]} 37. Qf6 {[%emt 0:00:06]} Rc4 38. Qxd6 {[%emt 0:00:15]} 1-0

[Event "Mukachevo IM October 2019"]
[Site "Mukachevo"]
[Date "2019.10.04"]
[Round "7.4"]
[White "Rytenko, Vsevolod"]
[Black "Boricsev, Oleg"]
[Result "1-0"]
[ECO "E06"]
[WhiteElo "2387"]
[BlackElo "2241"]
[Annotator "NA"]
[PlyCount "41"]
[EventDate "2019.10.01"]
[EventType "tourn"]
[EventCountry "UKR"]
[SourceTitle "playchess.com"]
[Source "ChessBase"]
[SourceQuality "1"]
[TimeControl "40/5400+30:900+30"]

1. d4 {[%emt 0:00:00]} Nf6 {[%emt 0:02:04]} 2. c4 {[%emt 0:00:00]} e6 {[%emt 0:01:31]} 3. Nf3 {[%emt 0:00:25]} d5 {[%emt 0:01:02]} 4. g3 {[%emt 0:01:09]} Be7 {[%emt 0:05:12]} 5. Bg2 {[%emt 0:00:27]} O-O {[%emt 0:01:20]} 6. O-O {[%emt 0:01:04]} dxc4 {[%emt 0:03:16]} 7. Qc2 {[%emt 0:01:28]} b6 {[%emt 0:04:55]} 8. Ne5 {[%emt 0:05:28]} Qxd4 {[%emt 0:03:36]} 9. Bxa8 {[%emt 0:00:32]} Qxe5 {[%emt 0:00:32]} 10. Bf3 {[%emt 0:05:45]} Rd8 {[%emt 0:06:04]} 11. Bf4 {[%emt 0:07:47]} Qc5 {[%emt 0:00:46]} 12. b4 {[%emt 0:11:58]} cxb3 {[%emt 0:01:29]} 13. Qxc5 {[%emt 0:00:33]} Bxc5 {[%emt 0:00:08]} 14. axb3 {[%emt 0:00:18]} Nd5 {[%emt 0:07:31]} 15. Bxd5 {[%emt 0:04:17]} Rxd5 {[%emt 0:02:09]} 16. Nc3 {[%emt 0:01:04]} Rd7 {[%emt 0:00:13]} 17. Rxa7 {[%emt 0:00:48]} Nc6 {[%emt 0:01:09]} 18. Ra8 {[%emt 0:00:41]} Ne7 {[%emt 0:02:01]} 19. Rd1 {[%emt 0:02:42]} Rxd1+ {[%emt 0:01:03]} 20. Nxd1 {[%emt 0:00:06]} c6 {[%emt 0:01:38]} 21. Bc7 {[%emt 0:00:33]} 1-0

[Event "Mukachevo IM October 2019"]
[Site "Mukachevo"]
[Date "2019.10.04"]
[Round "7.5"]
[White "Petrovskiy, Vadim"]
[Black "Sernecki, Franciszek"]
[Result "1/2-1/2"]
[ECO "B35"]
[WhiteElo "2197"]
[BlackElo "2276"]
[Annotator "NA"]
[PlyCount "70"]
[EventDate "2019.10.01"]
[EventType "tourn"]
[EventCountry "UKR"]
[SourceTitle "playchess.com"]
[Source "ChessBase"]
[SourceQuality "1"]
[TimeControl "40/5400+30:900+30"]

1. e4 {[%emt 0:04:40]} c5 {[%emt 0:00:00]} 2. Nf3 {[%emt 0:00:17]} Nc6 {[%emt 0:00:00]} 3. d4 {[%emt 0:00:08]} cxd4 {[%emt 0:00:00]} 4. Nxd4 {[%emt 0:00:05]} g6 {[%emt 0:00:00]} 5. Nc3 {[%emt 0:00:36]} Bg7 {[%emt 0:00:00]} 6. Be3 {[%emt 0:00:09]} Nf6 {[%emt 0:00:11]} 7. Bc4 {[%emt 0:01:46]} O-O {[%emt 0:00:22]} 8. O-O {[%emt 0:00:56]} Nxe4 {[%emt 0:08:57]} 9. Nxe4 {[%emt 0:01:01]} d5 {[%emt 0:00:49]} 10. Nxc6 {[%emt 0:00:11]} bxc6 {[%emt 0:00:11]} 11. Bd3 {[%emt 0:00:06]} dxe4 {[%emt 0:03:45]} 12. Bxe4 {[%emt 0:00:03]} Qc7 {[%emt 0:12:06]} 13. c3 {[%emt 0:05:11]} Be6 {[%emt 0:11:59]} 14. Qa4 {[%emt 0:01:09]} Bd5 {[%emt 0:04:32]} 15. Rad1 {[%emt 0:04:46]} Rfd8 {[%emt 0:05:39]} 16. Rfe1 {[%emt 0:03:24]} Rab8 {[%emt 0:05:33]} 17. Qxa7 {[%emt 0:14:28]} Rb7 {[%emt 0:08:32]} 18. Qa4 {[%emt 0:07:35]} Rxb2 {[%emt 0:05:46]} 19. Bxd5 {[%emt 0:17:33]} cxd5 {[%emt 0:02:25]} 20. Rc1 {[%emt 0:01:39]} e6 {[%emt 0:07:33]} 21. Red1 {[%emt 0:01:57]} Rc8 {[%emt 0:03:45]} 22. Qa3 {[%emt 0:02:21]} Qb7 {[%emt 0:01:50]} 23. c4 {[%emt 0:01:31]} Ra8 {[%emt 0:04:12]} 24. Qd6 {[%emt 0:00:50]} dxc4 {[%emt 0:05:44]} 25. Rxc4 {[%emt 0:03:36]} Rb1 {[%emt 0:02:58]} 26. Rc2 {[%emt 0:09:24]} Be5 {[%emt 0:04:30]} 27. Qd3 {[%emt 0:00:35]} Bf6 {[%emt 0:01:07]} 28. Qe2 {[%emt 0:04:23]} Rd8 {[%emt 0:00:54]} 29. Rxb1 {[%emt 0:00:28]} Qxb1+ {[%emt 0:00:02]} 30. Rc1 {[%emt 0:00:11]} Qe4 {[%emt 0:00:54]} 31. h3 {[%emt 0:00:33]} Bg5 {[%emt 0:00:37]} 32. Rc4 {[%emt 0:01:48]} Qb1+ {[%emt 0:00:20]} 33. Rc1 {[%emt 0:00:18]} Qe4 {[%emt 0:00:11]} 34. Rc4 {[%emt 0:00:16]} Qb1+ {[%emt 0:00:33]} 35. Rc1 {[%emt 0:00:10]} Qe4 {[%emt 0:00:19]} 1/2-1/2

[Event "Mukachevo IM October 2019"]
[Site "Mukachevo"]
[Date "2019.10.05"]
[Round "8.1"]
[White "Shkuran, Danylo"]
[Black "Sernecki, Franciszek"]
[Result "1-0"]
[ECO "A05"]
[WhiteElo "2343"]
[BlackElo "2276"]
[Annotator "ChessBase"]
[PlyCount "83"]
[EventDate "2019.10.01"]
[EventType "tourn"]
[EventCountry "UKR"]
[SourceTitle "playchess.com"]
[Source "ChessBase"]
[SourceQuality "1"]
[TimeControl "40/5400+30:900+30"]

1. Nf3 {[%emt 0:00:00]} Nf6 {[%emt 0:00:03]} 2. g3 {[%emt 0:00:00]} d5 {[%emt 0:00:06]} 3. Bg2 {[%emt 0:00:02]} e6 {[%emt 0:00:06]} 4. O-O {[%emt 0:00:06]} Be7 {[%emt 0:00:03]} 5. d3 {[%emt 0:00:26]} O-O {[%emt 0:00:28]} 6. c4 {[%emt 0:00:37]} c5 {[%emt 0:02:33]} 7. cxd5 {[%emt 0:02:12]} exd5 {[%emt 0:00:39]} 8. d4 {[%emt 0:00:15]} Nc6 {[%emt 0:03:24]} 9. Nc3 {[%emt 0:05:47]} h6 {[%emt 0:07:00]} 10. h3 {[%emt 0:03:59]} Be6 {[%emt 0:04:12]} 11. dxc5 {[%emt 0:05:58]} Bxc5 {[%emt 0:03:25]} 12. Na4 {[%emt 0:00:25]} Be7 {[%emt 0:07:06]} 13. Be3 {[%emt 0:00:24]} Rc8 {[%emt 0:00:56]} 14. Nc5 {[%emt 0:03:23]} b6 {[%emt 0:07:59]} 15. Nxe6 {[%emt 0:02:35]} fxe6 {[%emt 0:00:02]} 16. Rc1 {[%emt 0:13:18]} Qd6 {[%emt 0:09:51]} 17. Qa4 {[%emt 0:10:11]} Nd7 {[%emt 0:09:25]} 18. Rfd1 {[%emt 0:06:28]} Bf6 {[%emt 0:05:56]} 19. Bf4 {[%emt 0:04:46]} e5 {[%emt 0:06:50]} 20. Nxe5 {[%emt 0:08:44]} Ncxe5 {[%emt 0:02:59]} 21. Bxd5+ {[%emt 0:00:49]} Kh8 {[%emt 0:00:18]} 22. Rxc8 {[%emt 0:01:53]} Rxc8 {[%emt 0:00:50]} 23. Bb7 {[%emt 0:00:05]} Qf8 {[%emt 0:08:09]} 24. Bxc8 {[%emt 0:01:02]} Qxc8 {[%emt 0:00:10]} 25. Qxa7 {[%emt 0:00:48]} Qc6 {[%emt 0:03:21]} 26. b4 {[%emt 0:05:07]} b5 {[%emt 0:02:29]} 27. Rc1 {[%emt 0:02:57]} Nc4 {[%emt 0:03:58]} 28. a4 {[%emt 0:01:24]} bxa4 {[%emt 0:02:36]} 29. b5 {[%emt 0:00:22]} Qd5 {[%emt 0:01:10]} 30. Qxa4 {[%emt 0:01:10]} Ndb6 {[%emt 0:00:59]} 31. Qb3 {[%emt 0:01:36]} Qe6 {[%emt 0:02:25]} 32. Be3 {[%emt 0:05:05]} Bg5 {[%emt 0:02:23]} 33. Bxg5 {[%emt 0:00:06]} hxg5 {[%emt 0:00:16]} 34. Qd3 {[%emt 0:00:10]} Kg8 {[%emt 0:01:44]} 35. Rc2 {[%emt 0:03:31]} Kf7 {[%emt 0:00:48]} 36. Ra2 {[%emt 0:00:55]} Qe5 {[%emt 0:01:21]} 37. Ra7+ {[%emt 0:04:56]} Kg8 {[%emt 0:00:48]} 38. Rb7 {[%emt 0:01:24]} Qa1+ {[%emt 0:00:48]} 39. Kh2 {[%emt 0:00:36]} Qf1 {[%emt 0:01:10]} 40. Qf3 {[%emt 0:00:00]} Ne5 {[%emt 0:00:00]} 41. Rb8+ {[%emt 0:00:35]} Kh7 {[%emt 0:00:30]} 42. Qh5# {[%emt 0:00:04]} 1-0

[Event "Mukachevo IM October 2019"]
[Site "Mukachevo"]
[Date "2019.10.05"]
[Round "8.2"]
[White "Boricsev, Oleg"]
[Black "Petrovskiy, Vadim"]
[Result "1/2-1/2"]
[ECO "B30"]
[WhiteElo "2241"]
[BlackElo "2197"]
[Annotator "ChessBase"]
[PlyCount "57"]
[EventDate "2019.10.01"]
[EventType "tourn"]
[EventCountry "UKR"]
[SourceTitle "playchess.com"]
[Source "ChessBase"]
[SourceQuality "1"]
[TimeControl "40/5400+30:900+30"]

1. e4 {[%emt 0:00:22]} c5 {[%emt 0:00:00]} 2. Nf3 {[%emt 0:00:06]} Nc6 {[%emt 0:00:17]} 3. Bc4 {[%emt 0:00:04]} d6 {[%emt 0:01:05]} 4. c3 {[%emt 0:01:05]} Nf6 {[%emt 0:00:36]} 5. d3 {[%emt 0:00:15]} a6 {[%emt 0:01:52]} 6. Bb3 {[%emt 0:00:15]} Na5 {[%emt 0:01:44]} 7. Bc2 {[%emt 0:00:50]} e5 {[%emt 0:00:12]} 8. O-O {[%emt 0:02:33]} Be7 {[%emt 0:00:14]} 9. d4 {[%emt 0:01:30]} Qc7 {[%emt 0:01:29]} 10. d5 {[%emt 0:01:39]} b5 {[%emt 0:00:44]} 11. Nbd2 {[%emt 0:01:34]} O-O {[%emt 0:03:42]} 12. b3 {[%emt 0:06:52]} Bd7 {[%emt 0:02:53]} 13. Re1 {[%emt 0:00:21]} g6 {[%emt 0:02:06]} 14. Nf1 {[%emt 0:01:42]} c4 {[%emt 0:00:42]} 15. b4 {[%emt 0:03:24]} Nb7 {[%emt 0:00:07]} 16. Bh6 {[%emt 0:02:23]} Rfb8 {[%emt 0:00:22]} 17. Qd2 {[%emt 0:01:08]} a5 {[%emt 0:00:27]} 18. a3 {[%emt 0:00:12]} Ra6 {[%emt 0:00:00]} 19. Ng3 {[%emt 0:00:11]} Rba8 {[%emt 0:00:01]} 20. Rac1 {[%emt 0:00:06]} axb4 {[%emt 0:00:06]} 21. axb4 Bf8 {[%emt 0:01:08]} 22. Bg5 Be7 23. Bh6 Bf8 24. Bg5 {[%emt 0:01:23]} Be7 {[%emt 0:01:04]} 25. Bh6 {[%emt 0:00:21]} Bf8 {[%emt 0:00:00]} 26. Bg5 {[%emt 0:00:00]} Be7 27. Bh6 {[%emt 0:00:15]} Bf8 28. Bg5 {[%emt 0:00:30]} Be7 29. Bh6 {[%emt 0:00:30]} 1/2-1/2

[Event "Mukachevo IM October 2019"]
[Site "Mukachevo"]
[Date "2019.10.05"]
[Round "8.3"]
[White "Ganze, Laszlo"]
[Black "Rytenko, Vsevolod"]
[Result "0-1"]
[ECO "D52"]
[WhiteElo "1942"]
[BlackElo "2387"]
[Annotator "ChessBase"]
[PlyCount "54"]
[EventDate "2019.10.01"]
[EventType "tourn"]
[EventCountry "UKR"]
[SourceTitle "playchess.com"]
[Source "ChessBase"]
[SourceQuality "1"]
[TimeControl "40/5400+30:900+30"]

1. d4 {[%emt 0:00:00]} d5 {[%emt 0:00:00]} 2. c4 {[%emt 0:00:00]} e6 {[%emt 0:00:11]} 3. Nf3 {[%emt 0:00:02]} Nf6 {[%emt 0:00:10]} 4. Bg5 {[%emt 0:00:15]} c6 {[%emt 0:00:21]} 5. Nc3 {[%emt 0:00:13]} Nbd7 {[%emt 0:00:09]} 6. e3 {[%emt 0:00:28]} Qa5 {[%emt 0:00:16]} 7. cxd5 {[%emt 0:01:06]} exd5 {[%emt 0:01:33]} 8. Qc2 {[%emt 0:00:43]} Ne4 {[%emt 0:01:14]} 9. Bf4 {[%emt 0:00:35]} Bb4 {[%emt 0:01:39]} 10. Rc1 {[%emt 0:00:34]} Qxa2 {[%emt 0:01:06]} 11. Bd3 {[%emt 0:00:25]} Nxc3 {[%emt 0:01:32]} 12. bxc3 {[%emt 0:00:32]} Qxc2 {[%emt 0:00:08]} 13. Rxc2 {[%emt 0:00:14]} Be7 {[%emt 0:00:13]} 14. O-O {[%emt 0:00:25]} Nf6 {[%emt 0:01:54]} 15. c4 {[%emt 0:01:28]} dxc4 {[%emt 0:02:16]} 16. Bxc4 {[%emt 0:01:20]} O-O {[%emt 0:00:20]} 17. h3 {[%emt 0:00:29]} a5 {[%emt 0:01:38]} 18. Ne5 {[%emt 0:04:08]} Nd5 {[%emt 0:04:26]} 19. Bg3 {[%emt 0:02:12]} Be6 {[%emt 0:01:35]} 20. Bxd5 {[%emt 0:00:54]} Bxd5 {[%emt 0:00:21]} 21. Nd7 {[%emt 0:01:01]} Rfd8 {[%emt 0:01:32]} 22. Nc5 {[%emt 0:00:42]} b5 {[%emt 0:01:23]} 23. f3 {[%emt 0:07:25]} a4 {[%emt 0:01:36]} 24. Ra1 {[%emt 0:01:10]} b4 {[%emt 0:01:53]} 25. Be1 {[%emt 0:03:21]} b3 {[%emt 0:00:48]} 26. Rb2 {[%emt 0:01:38]} Bxc5 {[%emt 0:00:43]} 27. dxc5 {[%emt 0:00:14]} a3 {[%emt 0:00:10]} 0-1

[Event "Mukachevo IM October 2019"]
[Site "Mukachevo"]
[Date "2019.10.05"]
[Round "8.4"]
[White "Tiba, Vladyslav"]
[Black "Vachylia, Andrii"]
[Result "1/2-1/2"]
[ECO "B32"]
[WhiteElo "2360"]
[BlackElo "2201"]
[Annotator "ChessBase"]
[PlyCount "28"]
[EventDate "2019.10.01"]
[EventType "tourn"]
[EventCountry "UKR"]
[SourceTitle "playchess.com"]
[Source "ChessBase"]
[SourceQuality "1"]
[TimeControl "40/5400+30:900+30"]

1. e4 {[%emt 0:00:00]} c5 {[%emt 0:00:00]} 2. Nf3 {[%emt 0:00:00]} Nc6 {[%emt 0:00:42]} 3. d4 {[%emt 0:00:49]} cxd4 {[%emt 0:00:05]} 4. Nxd4 {[%emt 0:00:06]} e5 {[%emt 0:00:07]} 5. Nb5 {[%emt 0:00:25]} d6 {[%emt 0:00:10]} 6. N1c3 {[%emt 0:04:43]} Nf6 {[%emt 0:00:07]} 7. Nd5 {[%emt 0:00:17]} Nxd5 {[%emt 0:00:08]} 8. exd5 {[%emt 0:00:05]} Ne7 {[%emt 0:00:05]} 9. c4 {[%emt 0:01:10]} Ng6 {[%emt 0:01:25]} 10. Qa4 {[%emt 0:00:27]} Bd7 {[%emt 0:00:07]} 11. Qb4 {[%emt 0:00:28]} Bf5 {[%emt 0:00:08]} 12. Qa4 {[%emt 0:00:16]} Bd7 {[%emt 0:00:08]} 13. Qb4 {[%emt 0:00:19]} Bf5 {[%emt 0:00:09]} 14. Qa4 {[%emt 0:00:11]} Bd7 {[%emt 0:00:07]} 1/2-1/2

[Event "Mukachevo IM October 2019"]
[Site "Mukachevo"]
[Date "2019.10.05"]
[Round "8.5"]
[White "Oros, Robert"]
[Black "Kersten, Uwe"]
[Result "1/2-1/2"]
[ECO "B52"]
[WhiteElo "2284"]
[BlackElo "2239"]
[Annotator "ChessBase"]
[PlyCount "62"]
[EventDate "2019.10.01"]
[EventType "tourn"]
[EventCountry "UKR"]
[SourceTitle "playchess.com"]
[Source "ChessBase"]
[SourceQuality "1"]
[TimeControl "40/5400+30:900+30"]

1. e4 {[%emt 0:00:00]} c5 {[%emt 0:00:00]} 2. Nf3 {[%emt 0:00:05]} d6 {[%emt 0:00:29]} 3. Bb5+ {[%emt 0:02:08]} Bd7 {[%emt 0:00:21]} 4. Bxd7+ {[%emt 0:00:09]} Qxd7 {[%emt 0:00:20]} 5. O-O {[%emt 0:00:15]} Nc6 {[%emt 0:01:24]} 6. c3 {[%emt 0:00:08]} Nf6 {[%emt 0:00:56]} 7. d4 {[%emt 0:00:11]} cxd4 {[%emt 0:02:34]} 8. cxd4 {[%emt 0:08:06]} d5 {[%emt 0:00:27]} 9. e5 {[%emt 0:00:11]} Ng8 {[%emt 0:03:25]} 10. Nc3 {[%emt 0:05:07]} e6 {[%emt 0:00:59]} 11. Ne2 {[%emt 0:01:33]} Nge7 {[%emt 0:01:28]} 12. Ng3 {[%emt 0:01:07]} h6 {[%emt 0:06:47]} 13. Be3 {[%emt 0:02:49]} g6 {[%emt 0:04:15]} 14. Qd2 {[%emt 0:00:56]} Nf5 {[%emt 0:01:38]} 15. Nxf5 {[%emt 0:00:47]} exf5 {[%emt 0:06:54]} 16. Ne1 {[%emt 0:05:41]} Bb4 {[%emt 0:05:49]} 17. Qd3 {[%emt 0:01:04]} Bxe1 {[%emt 0:02:01]} 18. Rfxe1 {[%emt 0:00:22]} Nd8 {[%emt 0:01:05]} 19. Rec1 {[%emt 0:02:40]} Ne6 {[%emt 0:00:23]} 20. f3 {[%emt 0:00:15]} f4 {[%emt 0:04:00]} 21. Bf2 {[%emt 0:00:11]} O-O {[%emt 0:01:16]} 22. Rc3 {[%emt 0:00:51]} Rfc8 {[%emt 0:00:27]} 23. Rac1 {[%emt 0:00:14]} Kg7 {[%emt 0:08:46]} 24. Qc2 {[%emt 0:00:59]} Rxc3 {[%emt 0:00:31]} 25. Qxc3 {[%emt 0:00:06]} a5 {[%emt 0:02:10]} 26. h3 {[%emt 0:01:43]} Qb5 {[%emt 0:01:24]} 27. Qd2 {[%emt 0:02:32]} a4 {[%emt 0:01:21]} 28. a3 {[%emt 0:02:04]} Ra6 {[%emt 0:01:11]} 29. Rc3 {[%emt 0:01:19]} Rb6 {[%emt 0:00:58]} 30. Rc2 {[%emt 0:00:06]} Qb3 {[%emt 0:01:35]} 31. Qe2 {[%emt 0:00:23]} Rc6 {[%emt 0:01:45]} 1/2-1/2

[Event "Mukachevo IM October 2019"]
[Site "Mukachevo"]
[Date "2019.10.06"]
[Round "9.1"]
[White "Kersten, Uwe"]
[Black "Shkuran, Danylo"]
[Result "1-0"]
[ECO "A46"]
[WhiteElo "2239"]
[BlackElo "2343"]
[Annotator "ChessBase"]
[PlyCount "49"]
[EventDate "2019.10.01"]
[EventType "tourn"]
[EventCountry "UKR"]
[SourceTitle "playchess.com"]
[Source "ChessBase"]
[SourceQuality "1"]
[TimeControl "40/5400+30:900+30"]

1. d4 {[%emt 0:00:54]} Nf6 {[%emt 0:01:38]} 2. Bg5 {[%emt 0:00:29]} e6 {[%emt 0:01:01]} 3. Nf3 {[%emt 0:00:30]} d5 {[%emt 0:01:30]} 4. e3 {[%emt 0:00:13]} Be7 {[%emt 0:01:41]} 5. Bd3 {[%emt 0:00:25]} O-O {[%emt 0:00:13]} 6. Nbd2 {[%emt 0:00:42]} c5 {[%emt 0:00:38]} 7. c3 {[%emt 0:00:20]} Nc6 {[%emt 0:00:27]} 8. Ne5 {[%emt 0:01:11]} Qc7 {[%emt 0:04:52]} 9. f4 {[%emt 0:01:01]} Rb8 {[%emt 0:04:11]} 10. O-O {[%emt 0:07:23]} b5 {[%emt 0:07:13]} 11. Rf3 {[%emt 0:02:27]} g6 {[%emt 0:07:51]} 12. Qe1 {[%emt 0:10:17]} Nxe5 {[%emt 0:01:33]} 13. fxe5 {[%emt 0:01:51]} Ne8 {[%emt 0:11:33]} 14. Qh4 {[%emt 0:04:04]} Bxg5 {[%emt 0:00:57]} 15. Qxg5 {[%emt 0:00:05]} c4 {[%emt 0:10:26]} 16. Bc2 {[%emt 0:20:21]} b4 {[%emt 0:05:48]} 17. Rf2 {[%emt 0:04:43]} Bd7 {[%emt 0:05:06]} 18. Raf1 {[%emt 0:04:43]} bxc3 {[%emt 0:05:40]} 19. bxc3 {[%emt 0:00:10]} Qd8 {[%emt 0:00:38]} 20. Qh6 {[%emt 0:03:29]} Qe7 {[%emt 0:00:08]} 21. Rf6 {[%emt 0:07:09]} Rb2 {[%emt 0:03:35]} 22. R1f4 {[%emt 0:04:24]} Nxf6 {[%emt 0:04:52]} 23. exf6 {[%emt 0:00:57]} Qxf6 {[%emt 0:00:03]} 24. Rxf6 {[%emt 0:00:21]} Rxc2 {[%emt 0:00:03]} 25. Nf3 {[%emt 0:00:35]} 1-0

[Event "Mukachevo IM October 2019"]
[Site "Mukachevo"]
[Date "2019.10.06"]
[Round "9.3"]
[White "Rytenko, Vsevolod"]
[Black "Tiba, Vladyslav"]
[Result "1-0"]
[ECO "D20"]
[WhiteElo "2387"]
[BlackElo "2360"]
[Annotator "ChessBase"]
[PlyCount "59"]
[EventDate "2019.10.01"]
[EventType "tourn"]
[EventCountry "UKR"]
[SourceTitle "playchess.com"]
[Source "ChessBase"]
[SourceQuality "1"]
[TimeControl "40/5400+30:900+30"]

1. d4 {[%emt 0:00:00]} d5 {[%emt 0:00:00]} 2. c4 {[%emt 0:00:02]} dxc4 {[%emt 0:00:16]} 3. e4 {[%emt 0:00:40]} Nf6 {[%emt 0:00:37]} 4. Nc3 {[%emt 0:01:59]} c5 {[%emt 0:02:38]} 5. d5 {[%emt 0:01:46]} e6 {[%emt 0:00:10]} 6. Bg5 {[%emt 0:02:17]} Be7 {[%emt 0:04:01]} 7. Nf3 {[%emt 0:08:01]} exd5 {[%emt 0:05:28]} 8. e5 {[%emt 0:04:15]} Ne4 {[%emt 0:01:06]} 9. Bxe7 {[%emt 0:01:54]} Nxc3 {[%emt 0:04:33]} 10. Bxd8 {[%emt 0:00:30]} Nxd1 {[%emt 0:00:09]} 11. Rxd1 {[%emt 0:00:18]} Kxd8 {[%emt 0:01:36]} 12. Rxd5+ {[%emt 0:01:09]} Nd7 {[%emt 0:03:25]} 13. Bxc4 {[%emt 0:01:36]} b6 {[%emt 0:03:19]} 14. Ng5 {[%emt 0:04:36]} Kc7 {[%emt 0:14:01]} 15. Nxf7 {[%emt 0:03:27]} Re8 {[%emt 0:00:40]} 16. f4 {[%emt 0:02:07]} Bb7 {[%emt 0:00:41]} 17. Rd2 {[%emt 0:00:44]} Re7 {[%emt 0:01:28]} 18. O-O {[%emt 0:03:10]} a6 {[%emt 0:04:46]} 19. Nd6 {[%emt 0:04:31]} Rf8 {[%emt 0:02:01]} 20. g3 {[%emt 0:03:52]} b5 {[%emt 0:02:46]} 21. Bd3 {[%emt 0:02:04]} g5 {[%emt 0:01:54]} 22. Nxb7 {[%emt 0:00:43]} Kxb7 {[%emt 0:00:09]} 23. Be4+ {[%emt 0:00:26]} Kc7 {[%emt 0:00:16]} 24. Rd6 {[%emt 0:02:52]} gxf4 {[%emt 0:01:53]} 25. gxf4 {[%emt 0:01:06]} Nxe5 {[%emt 0:02:06]} 26. fxe5 {[%emt 0:00:32]} Rxf1+ {[%emt 0:00:09]} 27. Kxf1 {[%emt 0:00:04]} Rxe5 {[%emt 0:00:07]} 28. Rc6+ {[%emt 0:00:10]} Kd7 {[%emt 0:00:12]} 29. Bg2 {[%emt 0:00:13]} a5 {[%emt 0:00:22]} 30. Ra6 {[%emt 0:00:23]} 1-0

[Event "Mukachevo IM October 2019"]
[Site "Mukachevo"]
[Date "2019.10.06"]
[Round "9.4"]
[White "Petrovskiy, Vadim"]
[Black "Ganze, Laszlo"]
[Result "1-0"]
[ECO "B97"]
[WhiteElo "2197"]
[BlackElo "1942"]
[Annotator "ChessBase"]
[PlyCount "51"]
[EventDate "2019.10.01"]
[EventType "tourn"]
[EventCountry "UKR"]
[SourceTitle "playchess.com"]
[Source "ChessBase"]
[SourceQuality "1"]
[TimeControl "40/5400+30:900+30"]

1. e4 {[%emt 0:07:05]} c5 {[%emt 0:00:00]} 2. Nf3 {[%emt 0:00:09]} d6 {[%emt 0:00:00]} 3. d4 {[%emt 0:00:10]} cxd4 {[%emt 0:00:00]} 4. Nxd4 {[%emt 0:00:07]} Nf6 {[%emt 0:00:00]} 5. Nc3 {[%emt 0:00:07]} a6 {[%emt 0:00:10]} 6. Bg5 {[%emt 0:00:07]} e6 {[%emt 0:00:09]} 7. f4 {[%emt 0:00:45]} Qb6 {[%emt 0:00:15]} 8. Qd2 {[%emt 0:00:32]} Qxb2 {[%emt 0:00:22]} 9. Rb1 {[%emt 0:00:12]} Qa3 {[%emt 0:00:07]} 10. f5 {[%emt 0:00:12]} b5 {[%emt 0:00:42]} 11. Rb3 {[%emt 0:14:41]} Qa5 {[%emt 0:00:12]} 12. fxe6 {[%emt 0:02:05]} fxe6 {[%emt 0:00:21]} 13. Bd3 {[%emt 0:05:56]} Be7 {[%emt 0:02:34]} 14. O-O {[%emt 0:01:30]} O-O {[%emt 0:03:22]} 15. Nd5 {[%emt 0:03:10]} Qd8 {[%emt 0:01:31]} 16. Nxe7+ {[%emt 0:05:14]} Qxe7 {[%emt 0:00:06]} 17. Qb4 {[%emt 0:06:26]} e5 {[%emt 0:11:11]} 18. Bxf6 {[%emt 0:02:22]} Rxf6 {[%emt 0:01:40]} 19. Rxf6 {[%emt 0:00:09]} Qxf6 {[%emt 0:01:21]} 20. Bc4+ {[%emt 0:00:25]} Kh8 {[%emt 0:04:11]} 21. Rf3 {[%emt 0:00:18]} Qe7 {[%emt 0:00:43]} 22. Rf7 {[%emt 0:00:43]} Qd8 {[%emt 0:02:14]} 23. Bd5 {[%emt 0:01:19]} a5 {[%emt 0:06:12]} 24. Qd2 {[%emt 0:00:41]} Ra6 {[%emt 0:07:12]} 25. Qg5 {[%emt 0:00:16]} Qg8 {[%emt 0:01:22]} 26. Rxg7 {[%emt 0:00:11]} 1-0